bitfinex/quotes_SOLUSD_20241202
["timestamp","ask_amount","ask_price","bid_price","bid_amount"]
[1733169463333,0.12549,223.99,223.9,4.464]
[1733169464834,11.1617,223.98,223.9,4.464]
[1733169465248,11.1617,223.98,223.89,70.0]
[1733169465430,28.8623,224.1,223.93,78.48643619]
[1733169465633,28.8623,224.1,223.96,70.0]
[1733169465822,0.12549,224.05,223.96,70.0]
[1733169466344,11.1581,224.06,223.96,70.0]
[1733169466924,11.1587,224.04,223.96,70.0]
[1733169467526,11.1587,224.04,223.97,4.464]
[1733169467733,11.1552,224.11,223.98,0.89062332]
[1733169467933,33.4656,224.11,223.96,70.89047031]
[1733169468546,0.12549,224.1,223.96,70.89047031]
[1733169469150,20.0,224.08,223.96,70.89047031]
[1733169469353,20.0,224.08,223.97,4.464]
[1733169469738,20.0,224.08,223.96,70.89047031]
[1733169470263,11.1572,224.07,223.96,70.89047031]
[1733169471552,11.1572,224.07,223.97,4.464]
[1733169472245,11.1204,224.07,223.97,4.464]
[1733169473955,11.1204,224.07,223.96,70.89047031]
[1733169474954,11.1204,224.07,223.97,4.464]
[1733169475565,11.1204,224.07,223.96,70.89047031]
[1733169476156,11.1204,224.07,223.97,4.464]
[1733169476343,11.1204,224.07,223.96,70.0]
[1733169477635,38.788784,224.06,223.93,70.0]
[1733169478628,11.1582,224.05,223.93,70.0]
[1733169482550,23.776884,224.02,223.9,70.0]
[1733169483067,23.776884,224.0,223.9,70.0]
[1733169483965,11.1602,224.01,223.95,70.0]
[1733169484835,11.1602,224.01,223.92,70.0]
[1733169485166,23.902374,224.04,223.92,70.0]
[1733169485861,23.902374,224.0,223.89,70.0]
[1733169486440,20.0,224.01,223.89,70.0]
[1733169486646,20.0,224.02,223.89,70.0]
[1733169487049,11.1602,224.01,223.9,4.464]
[1733169488451,11.1602,224.01,223.93,4.464]
[1733169490077,23.902374,224.04,223.93,4.464]
[1733169491271,33.4776,224.03,223.9,4.464]
[1733169491668,23.902374,224.02,223.9,4.464]
[1733169492646,0.12549,224.02,223.9,4.464]
[1733169493573,11.1612,223.99,223.9,4.464]
[1733169496671,11.1612,223.99,223.87,4.464]
[1733169497955,22.3204,224.01,223.87,4.464]
[1733169497956,0.12549,223.98,223.87,4.464]
[1733169498167,31.1622,223.97,223.86,86.322]
[1733169498544,11.1622,223.97,223.86,86.322]
[1733169499177,22.3204,224.01,223.86,86.322]
[1733169499178,0.12549,224.0,223.86,86.322]
[1733169499864,22.14589,224.01,223.86,86.322]
[1733169502683,0.12549,224.0,223.86,86.322]
[1733169502977,33.4836,223.99,223.86,86.322]
[1733169504954,33.4836,223.99,223.86,87.21294606]
[1733169506085,33.4836,223.99,223.86,86.322]
[1733169506250,33.4836,223.99,223.87,4.464]
[1733169506456,33.4836,223.99,223.86,86.322]
[1733169511477,11.1622,223.97,223.86,86.322]
[1733169513390,11.1632,223.95,223.86,86.322]
[1733169514161,0.12549,223.94,223.86,16.322]
[1733169515468,0.12549,223.96,223.86,16.322]
[1733169516075,0.12549,223.96,223.86,15.822]
[1733169516474,0.12549,223.94,223.86,15.822]
[1733169517575,11.1642,223.93,223.86,15.822]
[1733169521197,11.1627,223.96,223.86,85.822]
[1733169522268,2.84261499,224.02,223.87,23.776884]
[1733169522473,11.1607,224.0,223.88,0.89082586]
[1733169523172,0.12549,223.98,223.88,0.89082586]
[1733169524672,11.1622,223.97,223.88,0.89082586]
[1733169525390,11.1622,223.97,223.89,23.776884]
[1733169525566,11.1607,224.01,223.91,23.776884]
[1733169526484,0.12549,224.04,223.91,23.776884]
[1733169526788,0.12549,224.03,223.91,23.776884]
[1733169526978,20.0,224.01,223.93,70.0]
[1733169527569,11.1605,224.01,223.94,21.5751]
[1733169529275,0.12549,224.03,223.94,21.5751]
[1733169530593,11.1597,224.02,223.94,21.5751]
[1733169536619,11.1597,224.02,223.95,4.464]
[1733169536778,11.1597,224.02,223.94,21.5751]
[1733169536975,11.1597,224.02,223.95,4.464]
[1733169537181,11.1597,224.02,223.94,21.5751]
[1733169539213,11.1597,224.02,223.95,4.464]
[1733169540010,11.1597,224.02,223.94,21.5751]
[1733169540494,11.1597,224.02,223.95,4.464]
[1733169540694,11.1597,224.02,223.94,21.5751]
[1733169541595,11.1597,224.02,223.95,4.464]
[1733169541996,11.1597,224.02,223.94,21.5751]
[1733169542307,8.99552209,224.07,223.94,21.5751]
[1733169542512,11.1577,224.06,223.94,91.5751]
[1733169542715,11.1577,224.06,223.95,24.66743565]
[1733169543108,11.1577,224.06,223.95,23.776884]
[1733169544706,11.1577,224.06,223.96,4.464]
[1733169546099,11.1577,224.06,223.97,70.0]
[1733169546330,11.40668,224.1,223.97,70.89056353]
[1733169547012,11.28119,224.1,223.97,70.89056353]
[1733169547209,11.28119,224.1,223.98,23.776884]
[1733169547526,11.28119,224.1,223.99,4.464]
[1733169548911,11.1557,224.1,223.99,4.464]
[1733169549497,11.1557,224.1,223.98,23.776884]
[1733169550426,11.1557,224.1,224.0,15.8691]
[1733169550912,11.1557,224.1,224.01,4.464]
[1733169551407,11.1557,224.1,224.0,15.8691]
[1733169551610,33.4701,224.08,224.0,15.8691]
[1733169551817,33.4701,224.08,224.01,4.464]
[1733169552318,33.4701,224.08,224.0,15.8691]
[1733169552888,33.4701,224.08,224.01,4.464]
[1733169553319,22.3104,224.11,224.0,15.8691]
[1733169553523,33.4656,224.11,224.0,15.8691]
[1733169553891,0.12549,224.1,224.01,4.464]
[1733169554216,0.12549,224.1,224.0,15.8691]
[1733169554913,11.1562,224.09,224.01,4.464]
[1733169557425,11.1562,224.09,224.0,15.8691]
[1733169557716,11.1562,224.09,224.01,4.464]
[1733169557896,11.1562,224.09,224.0,15.8691]
[1733169558524,11.1562,224.09,224.01,4.464]
[1733169560626,11.1562,224.09,224.01,23.776884]
[1733169561811,11.1562,224.09,224.02,4.464]
[1733169563632,11.1562,224.09,224.04,4.464]
[1733169563926,11.1562,224.09,224.03,15.6495]
[1733169564097,11.1562,224.09,224.04,4.464]
[1733169565521,11.1562,224.09,224.03,15.6495]
[1733169565711,11.1562,224.09,224.04,4.464]
[1733169567235,11.1562,224.09,224.03,15.6495]
[1733169567413,11.1562,224.09,224.04,4.464]
[1733169567818,11.1562,224.09,224.03,15.6495]
[1733169568328,0.5302386,224.12,224.04,0.89032001]
[1733169568567,0.5302386,224.12,224.06,70.0]
[1733169569151,0.5302386,224.12,224.03,85.6495]
[1733169569561,0.5302386,224.12,224.04,4.464]
[1733169570836,0.5302386,224.12,224.05,4.464]
[1733169571639,0.5302386,224.12,224.04,6.6379]
[1733169572013,0.5302386,224.12,224.05,4.464]
[1733169572713,0.5302386,224.12,224.04,6.6379]
[1733169572913,0.5302386,224.12,224.05,4.464]
[1733169573319,11.1552,224.11,224.05,4.464]
[1733169575518,11.1552,224.11,224.04,6.6379]
[1733169577076,11.1552,224.11,224.03,85.6495]
[1733169577239,11.1552,224.11,224.03,15.6495]
[1733169577419,11.1552,224.11,224.03,20.1135]
[1733169577618,11.1552,224.11,224.03,15.6495]
[1733169580121,11.1552,224.11,224.04,4.464]
[1733169580427,11.1552,224.11,224.03,15.6495]
[1733169580739,11.1552,224.11,224.04,4.464]
[1733169585124,11.1552,224.11,224.03,15.6495]
[1733169585840,11.1552,224.11,224.04,4.464]
[1733169587432,11.1552,224.11,224.03,15.6495]
[1733169588631,11.1552,224.11,224.04,4.464]
[1733169589034,11.1552,224.11,224.03,15.6495]
[1733169589830,11.1552,224.11,224.04,4.464]
[1733169591750,0.5302386,224.12,224.06,70.0]
[1733169593852,0.5302386,224.12,224.07,4.464]
[1733169594437,0.5302386,224.12,224.06,70.0]
[1733169594934,0.5302386,224.12,224.07,4.464]
[1733169597860,0.5302386,224.12,224.1,4.464]
[1733169598065,0.5302386,224.12,224.09,70.0]
[1733169598737,0.5302386,224.12,224.1,16.71104318]
[1733169598940,0.00782661,224.12,224.11,0.12549]
[1733169599563,0.00782661,224.12,224.1,16.58555318]
[1733169599767,0.00782661,224.12,224.11,0.12549]
[1733169599931,0.00782661,224.12,224.11,4.58949]
[1733169600353,0.00782661,224.12,224.11,0.12549]
[1733169600948,0.00782661,224.12,224.11,8.61192619]
[1733169601257,22.295,224.27,224.11,8.61192619]
[1733169601258,0.25098,224.27,224.14,70.0]
[1733169601764,0.25098,224.27,224.18,20.0]
[1733169602063,0.25098,224.27,224.15,22.3102]
[1733169602245,11.1467,224.28,224.16,4.464]
[1733169602567,11.1467,224.28,224.2,70.0]
[1733169602941,33.4402,224.28,224.17,70.0]
[1733169603562,0.25098,224.27,224.13,70.0]
[1733169603778,0.25098,224.24,224.1,70.0]
[1733169604069,16.0338,224.21,224.09,15.4271]
[1733169604248,0.25098,224.17,224.04,70.0]
[1733169604567,20.0,224.13,224.0,70.0]
[1733169604769,0.25098,224.12,223.97,70.0]
[1733169605157,11.1552,224.11,223.97,70.0]
[1733169605546,0.25098,224.1,223.97,70.0]
[1733169605745,20.25098,224.03,223.9,70.0]
[1733169606069,26.92887557,224.09,223.93,70.0]
[1733169606267,20.0,224.06,223.93,70.0]
[1733169606447,20.0,224.06,223.93,70.89056284]
[1733169606774,0.25098,224.05,223.93,70.0]
[1733169607277,11.1587,224.04,223.93,70.0]
[1733169607578,11.1587,224.04,223.92,16.5877]
[1733169607945,0.25098,224.03,223.9,70.0]
[1733169608142,16.55748,224.0,223.87,70.0]
[1733169608343,16.43199,224.0,223.87,70.0]
[1733169608746,16.3065,224.0,223.9,70.0]
[1733169609440,11.1612,223.99,223.91,4.464]
[1733169609671,11.1612,223.99,223.9,70.0]
[1733169610152,6.0733,223.98,223.88,4.464]
[1733169610952,0.12549,223.97,223.88,4.464]
[1733169611149,11.1627,223.96,223.88,4.464]
[1733169611854,27.4672,224.0,223.91,4.464]
[1733169613185,0.25098,223.99,223.91,4.464]
[1733169613363,11.1617,223.98,223.91,4.464]
[1733169613682,11.1617,223.98,223.9,4.464]
[1733169615660,11.1597,224.02,223.9,4.464]
[1733169615985,0.25098,224.01,223.9,4.464]
[1733169616152,11.1597,224.02,223.93,13.17689054]
[1733169616353,11.1577,224.07,223.95,83.17689054]
[1733169616581,11.1577,224.07,223.96,4.464]
[1733169617054,0.25098,224.06,223.96,4.464]
[1733169617450,11.1577,224.07,223.98,4.464]
[1733169617648,15.3245,224.1,224.04,4.464]
[1733169617854,11.1556,224.11,224.04,4.464]
[1733169619170,11.1512,224.19,224.04,4.464]
[1733169619377,0.25098,224.16,224.04,4.464]
[1733169620177,0.25098,224.14,224.04,4.464]
[1733169620875,11.1532,224.15,224.07,4.464]
[1733169622185,0.25098,224.19,224.07,4.464]
[1733169622881,0.25098,224.16,224.05,4.464]
[1733169623181,11.1532,224.15,224.06,74.464]
[1733169624783,11.1532,224.15,224.04,4.464]
[1733169625766,11.1532,224.15,224.05,4.464]
[1733169629992,11.1532,224.15,224.04,13.17689054]
[1733169629993,11.1542,224.13,224.04,4.464]
[1733169630788,0.25098,224.12,224.04,4.464]
[1733169630973,0.25098,224.12,224.02,4.464]
[1733169631300,0.25098,224.1,224.02,4.464]
[1733169632184,0.25098,224.07,223.98,4.464]
[1733169632781,0.25098,224.08,223.98,4.464]
[1733169632981,20.0,224.06,223.98,4.464]
[1733169633173,20.0,224.06,223.96,4.464]
[1733169633971,11.1582,224.05,223.96,4.464]
[1733169635491,11.1582,224.05,223.95,4.464]
[1733169635704,11.1582,224.05,223.96,0.12549]
[1733169635994,11.1582,224.05,223.95,4.464]
[1733169636178,11.1582,224.05,223.94,70.0]
[1733169636374,11.1582,224.05,223.95,4.464]
[1733169639484,11.1582,224.05,223.95,4.58949]
[1733169641304,11.1582,224.05,223.97,4.464]
[1733169642302,11.1582,224.05,223.95,4.58949]
[1733169642679,11.1582,224.05,223.95,4.464]
[1733169643201,21.8148,224.01,223.88,70.0]
[1733169643775,0.25098,224.0,223.88,70.0]
[1733169643980,0.25098,224.0,223.84,70.0]
[1733169644283,20.0,223.98,223.87,70.0]
[1733169644892,20.0,223.98,223.88,17.64089054]
[1733169645096,11.1622,223.97,223.88,17.64089054]
[1733169645905,11.1622,223.97,223.88,4.464]
[1733169646602,11.1622,223.97,223.87,4.464]
[1733169646906,33.4866,223.97,223.87,4.464]
[1733169647275,0.25098,223.96,223.87,4.464]
[1733169647499,0.25098,223.96,223.86,4.464]
[1733169648497,11.1632,223.95,223.85,4.464]
[1733169649085,11.1632,223.95,223.86,0.12549]
[1733169649582,11.1632,223.95,223.84,4.464]
[1733169649583,20.0,223.92,223.84,4.464]
[1733169649904,22.10189,223.91,223.84,4.464]
[1733169650591,22.10189,223.91,223.85,4.464]
[1733169650592,11.1656,223.9,223.85,4.464]
[1733169651173,0.12549,223.89,223.8,4.464]
[1733169651586,0.12549,223.89,223.79,17.64089054]
[1733169651881,0.12549,223.89,223.79,4.464]
[1733169652504,0.12549,223.89,223.8,0.12549]
[1733169652710,11.1666,223.88,223.78,0.12549]
[1733169653089,11.1666,223.88,223.78,17.76638054]
[1733169653400,11.1666,223.88,223.79,13.17689054]
[1733169653589,11.1666,223.88,223.81,0.12549]
[1733169654204,11.1666,223.88,223.8,0.12549]
[1733169654608,11.1666,223.88,223.82,0.12549]
[1733169656319,11.1666,223.88,223.81,0.12549]
[1733169658295,11.1666,223.88,223.81,4.58949]
[1733169661704,11.1666,223.88,223.81,0.12549]
[1733169664301,11.1666,223.88,223.8,0.12549]
[1733169666012,20.0,223.85,223.72,100.49101561]
[1733169666321,20.0,223.83,223.72,96.02701561]
[1733169666525,20.0,223.83,223.72,104.46592646]
[1733169666931,11.1696,223.82,223.74,8.43891085]
[1733169667114,11.1696,223.82,223.75,4.464]
[1733169667626,11.1696,223.82,223.76,8.43891085]
[1733169667815,11.1696,223.82,223.76,0.12549]
[1733169668518,11.1696,223.82,223.75,0.12549]
[1733169668830,11.1696,223.82,223.75,13.02840085]
[1733169669532,11.1696,223.82,223.76,8.43891085]
[1733169669827,27.5137,223.86,223.81,8.56440085]
[1733169670133,33.4911,223.94,223.86,0.12549]
[1733169670726,33.4911,223.94,223.84,0.12549]
[1733169671033,33.4911,223.94,223.84,8.56440085]
[1733169671938,33.4911,223.94,223.86,0.12549]
[1733169672226,11.1622,223.97,223.9,0.12549]
[1733169672432,11.1622,223.97,223.9,8.56440085]
[1733169672623,15.16,224.0,223.9,8.56440085]
[1733169673027,15.16,224.0,223.94,0.12549]
[1733169673224,6.476,224.01,223.94,8.56440085]
[1733169673538,26.2282,224.05,223.97,0.12549]
[1733169673829,5.0,224.14,224.03,13.16559929]
[1733169673830,6.2341,224.13,224.03,13.16559929]
[1733169674344,6.2341,224.13,224.02,0.12549]
[1733169674834,6.2341,224.13,224.02,4.58949]
[1733169675029,11.1547,224.12,224.02,4.58949]
[1733169675826,31.1564,224.09,224.01,0.12549]
[1733169676036,31.1564,224.09,224.0,4.464]
[1733169676235,23.776884,224.08,224.0,4.464]
[1733169676528,23.776884,224.08,223.99,0.12549]
[1733169677334,23.776884,224.08,223.99,13.29108929]
[1733169677525,11.1572,224.07,223.97,0.12549]
[1733169677723,23.776884,224.06,223.97,0.12549]
[1733169678025,23.776884,224.06,223.98,0.12549]
[1733169678233,23.776884,224.06,223.98,13.29108929]
[1733169678437,23.776884,224.06,223.98,83.29108929]
[1733169678640,23.776884,224.08,223.98,83.29108929]
[1733169679134,11.153,224.16,224.06,13.16559929]
[1733169679437,11.153,224.16,224.05,13.16559929]
[1733169679729,11.153,224.16,224.05,0.12549]
[1733169679929,11.153,224.16,224.04,83.16559929]
[1733169679930,0.12549,224.15,224.04,20.0]
[1733169680133,0.12549,224.15,224.03,0.12549]
[1733169680439,11.153,224.16,224.03,0.12549]
[1733169680440,11.153,224.16,224.05,0.12549]
[1733169681016,20.0,224.13,224.01,83.16559929]
[1733169681453,20.0,224.13,224.02,0.12549]
[1733169681819,23.776884,224.12,224.02,0.12549]
[1733169682022,23.776884,224.12,224.0,0.12549]
[1733169682435,23.776884,224.12,224.01,70.0]
[1733169682625,23.776884,224.12,224.01,83.16559929]
[1733169683345,23.776884,224.12,224.02,13.16559929]
[1733169683644,23.776884,224.12,224.01,83.16559929]
[1733169684148,23.776884,224.12,224.01,70.0]
[1733169684313,23.776884,224.1,223.99,13.16559929]
[1733169684938,23.776884,224.1,223.99,14.05603698]
[1733169685236,23.776884,224.1,224.0,13.16559929]
[1733169686143,23.776884,224.1,223.99,14.05603698]
[1733169686523,23.776884,224.1,224.0,13.16559929]
[1733169686948,23.776884,224.1,223.99,17.62959929]
[1733169687937,23.776884,224.06,223.91,83.16559929]
[1733169688140,23.776884,224.06,223.91,70.0]
[1733169688625,23.776884,224.02,223.91,70.0]
[1733169689946,23.776884,224.02,223.91,74.464]
[1733169690730,23.776884,224.0,223.91,74.464]
[1733169691620,23.776884,224.0,223.91,87.62959929]
[1733169691935,23.776884,224.0,223.93,13.16559929]
[1733169692141,23.776884,224.02,223.93,13.16559929]
[1733169692528,23.776884,224.02,223.94,13.16559929]
[1733169692831,11.1565,224.09,223.96,13.16559929]
[1733169693018,11.1565,224.09,223.98,13.16559929]
[1733169694122,11.1565,224.09,223.97,17.62959929]
[1733169694646,11.1565,224.09,223.97,87.62959929]
[1733169694851,11.1565,224.09,224.0,87.62959929]
[1733169696046,22.2946,224.15,224.0,87.62959929]
[1733169696233,23.776884,224.08,224.0,87.62959929]
[1733169696425,23.776884,224.08,224.0,74.464]
[1733169696818,23.776884,224.02,223.91,70.0]
[1733169697024,23.776884,224.02,223.89,70.0]
[1733169697737,23.776884,224.02,223.9,4.464]
[1733169697930,20.0,223.99,223.88,4.464]
[1733169698250,34.938784,223.98,223.88,4.464]
[1733169700263,34.938784,223.98,223.89,4.464]
[1733169700442,34.938784,223.98,223.89,17.62959929]
[1733169700645,34.938784,223.98,223.9,4.464]
[1733169701953,34.938784,223.98,223.9,17.62959929]
[1733169702160,34.938784,223.98,223.91,4.464]
[1733169702467,34.938784,223.98,223.91,17.62959929]
[1733169702647,20.0,224.0,223.92,83.16559929]
[1733169702956,11.16,224.02,223.93,13.16559929]
[1733169703259,11.16,224.02,223.91,4.464]
[1733169703639,0.25098,224.01,223.91,4.464]
[1733169704163,24.027864,224.01,223.91,17.62959929]
[1733169704847,11.1607,224.0,223.91,17.62959929]
[1733169705045,23.776884,223.99,223.91,17.62959929]
[1733169705452,23.776884,223.99,223.91,4.464]
[1733169705653,23.776884,223.99,223.88,17.62959929]
[1733169705856,23.776884,223.99,223.9,13.16559929]
[1733169706771,23.776884,223.99,223.89,13.29108929]
[1733169706929,23.776884,223.99,223.89,13.16559929]
[1733169707132,23.776884,223.97,223.9,13.16559929]
[1733169708860,23.776884,223.97,223.89,13.16559929]
[1733169709269,23.776884,223.97,223.9,13.16559929]
[1733169710767,23.776884,223.97,223.91,13.16559929]
[1733169711341,23.776884,223.97,223.9,13.16559929]
[1733169711542,23.776884,223.97,223.89,13.16559929]
[1733169711755,23.776884,223.97,223.9,4.464]
[1733169712751,23.776884,223.97,223.91,13.16559929]
[1733169712947,23.776884,223.97,223.9,17.62959929]
[1733169713255,23.776884,223.97,223.9,4.464]
[1733169713461,23.776884,223.97,223.9,17.62959929]
[1733169713839,23.776884,223.97,223.9,4.464]
[1733169714139,22.2471,223.96,223.9,4.464]
[1733169714340,23.776884,223.95,223.9,4.464]
[1733169715462,23.776884,223.95,223.9,17.62959929]
[1733169715761,16.1007,223.96,223.92,4.464]
[1733169715962,11.1612,223.99,223.92,4.464]
[1733169716161,22.2471,224.01,223.93,4.464]
[1733169716352,22.2471,224.01,223.97,13.16559929]
[1733169716557,22.2471,224.01,223.93,0.12549]
[1733169716558,33.4033,224.09,223.99,13.16559929]
[1733169716756,0.25098,224.08,223.99,17.62959929]
[1733169717466,22.2471,224.09,223.99,17.62959929]
[1733169717764,11.1572,224.07,223.93,0.12549]
[1733169717968,23.776884,224.03,223.97,4.464]
[1733169718268,11.1572,224.07,224.0,13.16559929]
[1733169718438,11.1572,224.07,223.99,13.16559929]
[1733169718639,11.1542,224.13,224.02,13.16559929]
[1733169718869,0.25098,224.12,224.03,4.464]
[1733169719479,0.25098,224.12,224.02,4.464]
[1733169719643,0.12549,224.13,224.02,4.464]
[1733169719958,20.0,224.08,224.02,4.464]
[1733169720571,11.1552,224.11,224.02,4.464]
[1733169721373,11.1542,224.13,224.04,4.464]
[1733169721743,11.1542,224.13,224.04,17.62959929]
[1733169721942,0.25098,224.14,224.04,17.62959929]
[1733169722166,44.027864,224.14,224.04,4.464]
[1733169722675,44.027864,224.14,224.03,4.464]
[1733169723976,23.776884,224.12,224.02,4.464]
[1733169724478,23.776884,224.12,224.02,17.62959929]
[1733169724654,23.776884,224.12,224.02,4.464]
[1733169724849,23.776884,224.12,224.04,4.464]
[1733169727049,23.776884,224.12,224.02,17.62959929]
[1733169728052,23.776884,224.12,224.06,4.464]
[1733169729657,23.776884,224.12,224.04,17.62959929]
[1733169732066,23.776884,224.13,224.06,17.62959929]
[1733169735087,25.13148805,224.21,224.09,17.62959929]
[1733169735088,22.3006,224.21,224.09,17.62959929]
[1733169735265,22.3006,224.21,224.1,17.62959929]
[1733169735787,22.3006,224.21,224.1,8.41596466]
[1733169735982,11.1511,224.2,224.1,8.41596466]
[1733169736162,11.1511,224.2,224.11,4.464]
[1733169736362,11.1511,224.2,224.09,12.87996466]
[1733169736856,11.1511,224.2,224.1,8.41596466]
[1733169737288,11.1511,224.2,224.04,3.1024062]
[1733169737289,10.28178011,224.26,224.16,8.41596466]
[1733169737587,10.28178011,224.26,224.13,0.12549]
[1733169737588,6.3133,224.32,224.22,8.41596466]
[1733169737793,11.1442,224.33,224.24,8.41596466]
[1733169737993,11.1442,224.33,224.23,8.41596466]
[1733169738302,11.1442,224.33,224.24,24.33265466]
[1733169738461,11.1442,224.33,224.24,15.91669]
[1733169738865,11.1442,224.33,224.24,24.33265466]
[1733169739293,23.776884,224.32,224.25,4.464]
[1733169739589,23.776884,224.32,224.24,15.91669]
[1733169740169,23.776884,224.32,224.24,20.38069]
[1733169740587,23.776884,224.32,224.24,33.51561293]
[1733169741166,23.776884,224.32,224.25,19.59662293]
[1733169741363,0.5302386,224.34,224.27,13.13492293]
[1733169742086,0.5302386,224.34,224.26,70.12549]
[1733169742484,0.5302386,224.34,224.26,83.26041293]
[1733169743175,0.5302386,224.34,224.27,13.13492293]
[1733169743369,0.5302386,224.34,224.26,0.12549]
[1733169743573,0.5302386,224.34,224.28,0.12549]
[1733169744086,0.5302386,224.34,224.28,13.26041293]
[1733169744398,0.5302386,224.34,224.33,13.13492293]
[1733169745174,0.5302386,224.34,224.32,13.13492293]
[1733169745805,0.5302386,224.34,224.31,13.13492293]
[1733169746107,0.5302386,224.34,224.32,0.12549]
[1733169746781,0.5302386,224.34,224.31,13.13492293]
[1733169747104,0.5302386,224.34,224.27,83.13492293]
[1733169747285,0.5302386,224.34,224.28,0.12549]
[1733169747482,0.5302386,224.34,224.28,13.26041293]
[1733169748502,0.5302386,224.34,224.28,0.12549]
[1733169748791,0.5302386,224.34,224.27,0.12549]
[1733169749092,23.776884,224.33,224.26,17.59892293]
[1733169750001,23.776884,224.31,224.24,28.92612293]
[1733169750377,23.776884,224.31,224.25,13.13492293]
[1733169751171,23.776884,224.31,224.24,28.92612293]
[1733169751371,23.776884,224.31,224.25,4.458]
[1733169751783,23.776884,224.31,224.22,4.458]
[1733169751998,23.776884,224.29,224.22,4.458]
[1733169752504,23.776884,224.29,224.23,4.458]
[1733169752797,23.776884,224.29,224.23,17.59292293]
[1733169753389,11.1457,224.3,224.25,4.458]
[1733169753588,0.5302386,224.34,224.25,4.458]
[1733169753773,11.6744386,224.34,224.29,13.13492293]
[1733169754404,11.6744386,224.34,224.29,4.458]
[1733169754905,0.5302386,224.34,224.29,4.458]
[1733169756543,0.5302386,224.34,224.27,17.59292293]
[1733169756806,0.5302386,224.34,224.27,4.458]
[1733169757004,0.5302386,224.34,224.27,17.59292293]
[1733169758912,0.5302386,224.34,224.27,4.458]
[1733169759080,0.5302386,224.34,224.24,13.13492293]
[1733169759081,23.776884,224.33,224.24,13.13492293]
[1733169759289,23.776884,224.33,224.25,17.59292293]
[1733169760092,11.1447,224.32,224.25,4.458]
[1733169760306,23.776884,224.31,224.24,4.458]
[1733169761419,23.776884,224.31,224.23,4.458]
[1733169761783,11.1457,224.3,224.23,4.458]
[1733169762607,23.776884,224.29,224.21,17.59292293]
[1733169763894,23.776884,224.29,224.23,4.458]
[1733169764585,23.776884,224.29,224.23,17.59292293]
[1733169765717,23.776884,224.29,224.24,4.458]
[1733169765926,23.776884,224.33,224.28,13.13492293]
[1733169766215,0.5302386,224.34,224.29,13.13492293]
[1733169766921,0.5302386,224.34,224.29,4.458]
[1733169768011,24.3071226,224.34,224.27,17.59292293]
[1733169768585,0.5302386,224.34,224.33,83.38590293]
[1733169768791,0.5302386,224.34,224.33,94.83820082]
[1733169769012,0.5302386,224.34,224.33,93.94930293]
[1733169770191,0.5302386,224.34,224.33,117.72618693]
[1733169771926,0.5302386,224.34,224.33,117.85167693]
[1733169772689,0.0650627,224.34,224.33,117.85167693]
[1733169774515,11.1369,224.48,224.41,4.458]
[1733169775800,11.1369,224.48,224.4,4.458]
[1733169776211,15.5036,224.51,224.44,13.13492293]
[1733169776411,11.1351,224.52,224.45,13.13492293]
[1733169776720,11.1351,224.52,224.43,13.13492293]
[1733169777022,11.1351,224.52,224.45,13.13492293]
[1733169777321,11.1351,224.52,224.46,4.458]
[1733169778422,11.1328,224.56,224.46,4.458]
[1733169779495,11.1328,224.56,224.46,17.59292293]
[1733169779893,11.1328,224.56,224.46,4.458]
[1733169780804,11.1328,224.56,224.49,4.458]
[1733169782726,11.1328,224.56,224.49,17.59292293]
[1733169783025,11.1328,224.56,224.49,4.458]